bitfinex-derivatives/quotes_BTCF0:USTF0_20250630
["timestamp","ask_amount","ask_price","bid_price","bid_amount"]
[1751296270902,1.467027,107030.0,107020.0,0.22782439]
[1751296271102,1.467027,107030.0,107020.0,0.27292439]
[1751296271501,1.467027,107030.0,107020.0,0.04803436]
[1751296271806,1.467027,107030.0,107020.0,0.27292439]
[1751296272603,1.1372205,107030.0,107020.0,0.04803436]
[1751296272909,1.0921205,107030.0,107020.0,0.27292439]
[1751296273104,1.467027,107030.0,107020.0,0.27292439]
[1751296273909,1.41226418,107030.0,107020.0,0.27292439]
[1751296275513,1.88226418,107030.0,107020.0,0.22782439]
[1751296275713,1.45876418,107030.0,107020.0,0.22782439]
[1751296276406,1.1386205,107030.0,107020.0,0.22782439]
[1751296276607,1.45876418,107030.0,107020.0,0.22782439]
[1751296276806,1.45876418,107030.0,107020.0,0.27672439]
[1751296277316,1.41226418,107030.0,107020.0,0.27672439]
[1751296278212,1.41226418,107030.0,107020.0,0.29132924]
[1751296278917,1.41226418,107030.0,107020.0,0.52366774]
[1751296279614,0.91226418,107030.0,107020.0,0.52366774]
[1751296279818,0.91226418,107030.0,107020.0,0.33482924]
[1751296280319,0.93450653,107030.0,107020.0,0.33482924]
[1751296283616,0.93450653,107030.0,107020.0,0.94098924]
[1751296284913,0.93450653,107030.0,107020.0,0.89548924]
[1751296285819,0.98150653,107030.0,107020.0,0.89548924]
[1751296286114,1.34150653,107030.0,107020.0,0.24042924]
[1751296286315,0.66136285,107030.0,107020.0,0.01553921]
[1751296286518,1.85150653,107030.0,107020.0,0.01553921]
[1751296287322,1.95150653,107030.0,107020.0,0.01553921]
[1751296287525,1.99910653,107030.0,107020.0,0.01553921]
[1751296288221,1.89910653,107030.0,107020.0,0.01553921]
[1751296288621,1.99910653,107030.0,107020.0,0.01553921]
[1751296289318,1.67896285,107030.0,107020.0,0.01553921]
[1751296289523,1.99910653,107030.0,107020.0,0.01553921]
[1751296292014,2.60502653,107030.0,107020.0,0.01553921]
[1751296292220,2.60502653,107030.0,107020.0,1e-08]
[1751296292418,2.79189853,107030.0,107020.0,1e-08]
[1751296293118,2.47175485,107030.0,107020.0,1e-08]
[1751296293323,2.79189853,107030.0,107020.0,1e-08]
[1751296293723,2.60502653,107030.0,107020.0,1e-08]
[1751296297223,0.1868559,107010.0,107000.0,0.0931]
[1751296297423,1.59084193,107010.0,107000.0,0.27139003]
[1751296297624,1.02379825,107010.0,107000.0,0.27139003]
[1751296297824,1.65394193,107010.0,107000.0,0.27139003]
[1751296298025,1.65394193,107010.0,107000.0,0.31749003]
[1751296298327,2.15394193,107010.0,107000.0,0.31749003]
[1751296299723,2.15394193,107010.0,107000.0,0.0465]
[1751296299929,2.15394193,107010.0,107000.0,0.27139003]
[1751296301136,2.57408561,107010.0,107000.0,0.0465]
[1751296301337,2.25394193,107010.0,107000.0,0.0465]
[1751296301835,0.1868734,107000.0,106990.0,0.04703462]
[1751296302030,1.55516076,107000.0,106990.0,0.31812465]
[1751296302231,1.60376076,107000.0,106990.0,0.31812465]
[1751296302432,1.60376076,107000.0,106990.0,0.2860938]
[1751296302725,1.70376076,107000.0,106990.0,0.01500377]
[1751296302930,1.72588868,107000.0,106990.0,0.01500377]
[1751296303133,2.22588868,107000.0,106990.0,0.01500377]
[1751296303534,2.22588868,107000.0,106990.0,0.01700377]
[1751296304131,2.22588868,107000.0,106990.0,0.01500377]
[1751296305331,2.37740868,107000.0,106990.0,7e-08]
[1751296305535,0.1868908,106990.0,106980.0,0.0462]
[1751296305735,0.1869083,106980.0,106970.0,8e-08]
[1751296306032,0.1869257,106970.0,106960.0,0.00093489]
[1751296306231,1.89804938,106970.0,106960.0,0.22582492]
[1751296306628,0.9720257,106970.0,106960.0,0.22582492]
[1751296306830,0.6750257,106970.0,106960.0,0.22582492]
[1751296307039,0.93744627,106970.0,106960.0,0.31982492]
[1751296307237,1.29744627,106970.0,106960.0,0.31982492]
[1751296307539,1.80653831,106970.0,106960.0,0.27252492]
[1751296307738,2.22668199,106970.0,106960.0,0.00093489]
[1751296307941,2.32138199,106970.0,106960.0,0.00093489]
[1751296308139,2.32138199,106970.0,106960.0,0.00493489]
[1751296309040,2.00123831,106970.0,106960.0,0.00493489]
[1751296309442,1.97896142,106970.0,106960.0,0.00493489]
[1751296310243,1.87896142,106970.0,106960.0,0.00493489]
[1751296310938,1.51091774,106970.0,106960.0,0.00493489]
[1751296311136,1.83106142,106970.0,106960.0,0.22982492]
[1751296311332,1.83106142,106970.0,106960.0,0.27562492]
[1751296311741,1.78426142,106970.0,106960.0,0.27562492]
[1751296312140,1.07012804,106970.0,106960.0,0.61038303]
[1751296312337,1.0477257,106970.0,106960.0,1.02420245]
[1751296312541,1.36786938,106970.0,106960.0,0.59725935]
[1751296312737,1.00706938,106970.0,106960.0,0.78938245]
[1751296313045,1.00706938,106970.0,106930.0,0.96565715]
[1751296313046,0.1869781,106940.0,106930.0,0.00093515]
[1751296313251,1.57872178,106940.0,106930.0,0.09253515]
[1751296313546,1.22872178,106940.0,106930.0,0.32328767]
[1751296313738,1.22872178,106940.0,106930.0,0.17172767]
[1751296313944,1.22872178,106940.0,106930.0,0.32328767]
[1751296314142,1.54872178,106940.0,106930.0,0.32328767]
[1751296314444,0.9085781,106940.0,106930.0,0.32328767]
[1751296314746,1.22872178,106940.0,106930.0,0.17172767]
[1751296315046,1.55872178,106940.0,106930.0,0.33028767]
[1751296315242,1.55872178,106940.0,106930.0,0.17872767]
[1751296315440,1.55872178,106940.0,106930.0,0.33028767]
[1751296315742,0.56274296,106940.0,106930.0,0.51728327]
[1751296316645,0.92354296,106940.0,106930.0,0.51728327]
[1751296316945,0.92354296,106940.0,106930.0,0.33028767]
[1751296317444,0.92354296,106940.0,106930.0,0.34490347]
[1751296318739,0.92354296,106940.0,106930.0,0.85189907]
[1751296318946,0.5477781,106940.0,106930.0,0.85189907]
[1751296319141,0.1869781,106940.0,106930.0,1.12113907]
[1751296319346,0.1869781,106940.0,106930.0,1.88173907]
[1751296323045,0.1869781,106940.0,106930.0,1.52093907]
[1751296323244,0.56274296,106940.0,106930.0,1.88173907]
[1751296325048,0.1869781,106940.0,106930.0,1.88173907]
[1751296326753,0.56274296,106940.0,106930.0,1.88173907]
[1751296327249,0.56274296,106940.0,106930.0,1.52093907]
[1751296327440,0.1869781,106940.0,106930.0,1.52093907]
[1751296328249,0.56274296,106940.0,106930.0,1.52093907]
[1751296328449,0.56274296,106940.0,106930.0,1.88173907]
[1751296328750,0.56274296,106940.0,106930.0,1.92723907]
[1751296329251,0.1869781,106940.0,106930.0,1.92723907]
[1751296329842,0.3271986,106950.0,106940.0,0.1869781]
[1751296330046,0.2804547,106950.0,106940.0,1.13366642]
[1751296330554,0.2804547,106950.0,106940.0,1.86446642]
[1751296330555,0.65621956,106950.0,106940.0,1.86446642]
[1751296331257,0.65621956,106950.0,106940.0,1.50366642]
[1751296331850,0.65621956,106950.0,106940.0,1.86446642]
[1751296332357,0.65621956,106950.0,106940.0,1.86846642]
[1751296333056,0.65621956,106950.0,106940.0,1.92418178]
[1751296333252,1.01701956,106950.0,106940.0,0.26552368]
[1751296333457,0.6412547,106950.0,106940.0,1.11096642]
[1751296333752,1.06361956,106950.0,106940.0,1.11096642]
[1751296333954,1.06361956,106950.0,106940.0,0.35008642]
[1751296334154,1.06361956,106950.0,106940.0,1.11152642]
[1751296334354,1.06361956,106950.0,106940.0,1.16724178]
[1751296334657,1.06361956,106950.0,106940.0,0.40580178]
[1751296334857,1.06361956,106950.0,106940.0,1.16716178]
[1751296335553,1.11111956,106950.0,106940.0,0.91504368]
[1751296335750,1.15671956,106950.0,106940.0,0.15352368]
[1751296336055,1.15671956,106950.0,106940.0,0.22729116]
[1751296336056,1.88248442,106950.0,106940.0,0.22729116]
[1751296336244,1.50671956,106950.0,106940.0,0.22729116]
[1751296336446,2.00671956,106950.0,106940.0,0.22729116]
[1751296336645,2.02815074,106950.0,106940.0,0.1715758]
[1751296337350,2.4039156,106950.0,106940.0,0.0186158]
[1751296337851,1.65238588,106950.0,106940.0,0.0186158]
[1751296338056,2.56044645,106950.0,106940.0,0.05598169]
[1751296338459,2.56044645,106950.0,106940.0,0.0186158]
[1751296339349,2.56044645,106950.0,106940.0,0.05598169]
[1751296339555,2.63464012,106950.0,106940.0,0.0186158]
[1751296340052,2.63464012,106950.0,106940.0,0.05598169]
[1751296340762,2.73464012,106950.0,106940.0,0.05598169]
[1751296341661,2.73464012,106950.0,106940.0,0.0186158]
[1751296341861,2.73464012,106950.0,106940.0,0.05598169]
[1751296342156,2.73464012,106950.0,106940.0,0.08399893]
[1751296342656,0.1869781,106940.0,106930.0,0.05665051]
[1751296342861,1.30314985,106940.0,106930.0,0.00093515]
[1751296343259,1.9739755,106940.0,106920.0,0.05571536]
[1751296343561,1.9739755,106940.0,106910.0,0.07455035]
[1751296343562,0.1870131,106920.0,106910.0,0.07455035]
[1751296343760,1.5693566,106920.0,106910.0,0.07455035]
[1751296343955,0.1870306,106910.0,106900.0,0.07566139]
[1751296344264,1.27432017,106910.0,106900.0,0.00093541]
[1751296344760,1.88420017,106910.0,106900.0,0.00093541]
[1751296345765,2.43961616,106910.0,106900.0,0.01093541]
[1751296346058,1.45354842,106910.0,106900.0,0.01093541]
[1751296346254,2.43969616,106910.0,106900.0,0.01093541]
[1751296346653,2.48849616,106910.0,106900.0,0.01093541]
[1751296347053,1.23234842,106910.0,106900.0,0.01093541]
[1751296347261,1.60853616,106910.0,106900.0,0.01093541]
[1751296348062,1.23234842,106910.0,106900.0,0.01093541]
[1751296348253,1.61764934,106910.0,106900.0,0.05553541]
[1751296348759,1.61764934,106910.0,106900.0,0.01093541]
[1751296349859,1.61764934,106910.0,106900.0,0.09012793]
[1751296350555,1.1954616,106910.0,106900.0,0.09012793]
[1751296350760,1.57164934,106910.0,106900.0,0.09012793]
[1751296351961,1.52164934,106910.0,106900.0,0.09012793]
[1751296354466,1.51253616,106910.0,106900.0,0.09012793]
[1751296358460,1.46673616,106910.0,106900.0,0.09012793]
[1751296358769,1.46673616,106910.0,106900.0,0.18142793]
[1751296361976,1.09054842,106910.0,106900.0,0.18142793]
[1751296362167,1.41793616,106910.0,106900.0,0.36847603]
[1751296362476,0.68094842,106910.0,106900.0,0.72927603]
[1751296362775,0.68094842,106910.0,106900.0,0.72847603]
[1751296363163,0.18094842,106910.0,106900.0,0.72847603]
[1751296363872,0.18094842,106910.0,106900.0,0.78433206]
[1751296364072,0.18094842,106910.0,106900.0,0.72847603]
[1751296364270,0.18094842,106910.0,106900.0,0.78433206]
[1751296364573,0.18094842,106910.0,106900.0,1.14513206]
[1751296365773,0.55713616,106910.0,106900.0,1.14513206]
[1751296367367,0.18094842,106910.0,106900.0,0.78433206]
[1751296367567,0.18094842,106910.0,106900.0,1.14513206]
[1751296367776,0.50177226,106910.0,106900.0,1.14513206]
[1751296368277,0.50177226,106910.0,106900.0,1.15609687]
[1751296368469,0.1807835,106910.0,106900.0,1.15609687]
[1751296370473,0.50160734,106910.0,106900.0,1.15609687]
[1751296370880,0.1807835,106910.0,106900.0,1.17466947]
[1751296371178,0.50160734,106910.0,106900.0,1.17466947]
[1751296372283,0.50160734,106910.0,106900.0,0.81386947]
[1751296372977,0.50160734,106910.0,106900.0,1.17466947]
[1751296373280,0.1807835,106910.0,106900.0,1.17466947]
[1751296373882,0.50160734,106910.0,106900.0,1.17466947]
[1751296376883,0.50160734,106910.0,106900.0,0.81386947]
[1751296377084,0.50160734,106910.0,106900.0,1.17466947]
[1751296377282,0.50160734,106910.0,106900.0,1.10024084]
[1751296377484,0.50160734,106910.0,106900.0,1.17498785]
[1751296378785,0.50160734,106910.0,106900.0,0.73944084]
[1751296378986,0.50160734,106910.0,106900.0,1.10024084]
[1751296381080,0.50160734,106910.0,106900.0,1.17498785]
[1751296381284,0.41691705,106930.0,106900.0,1.17498785]
[1751296381285,0.10301875,106930.0,106900.0,1.74584574]
[1751296381477,0.1870097,106930.0,106920.0,1.02257862]
[1751296381687,0.1870097,106930.0,106920.0,1.37354343]
[1751296381882,0.1870097,106930.0,106920.0,1.46634343]
[1751296382077,0.1870097,106930.0,106920.0,1.14551959]
[1751296382291,0.50783354,106930.0,106920.0,1.14551959]
[1751296382790,0.50783354,106930.0,106920.0,1.13619723]
[1751296382987,0.50783354,106930.0,106920.0,0.77539723]
[1751296383487,0.1870097,106930.0,106920.0,0.77539723]
[1751296383999,0.50783354,106930.0,106920.0,0.77539723]
[1751296384402,0.86863354,106930.0,106920.0,1.52441399]
[1751296384594,0.50783354,106930.0,106920.0,1.52441399]
[1751296386106,0.50783354,106930.0,106920.0,1.53041399]
[1751296386692,0.50783354,106930.0,106920.0,0.71597043]
[1751296386898,0.50783354,106930.0,106920.0,1.47429043]
[1751296387608,0.50783354,106930.0,106920.0,0.71597043]
[1751296387805,0.60303354,106930.0,106920.0,1.47429043]
[1751296388611,0.91533354,106930.0,106920.0,0.71597043]
[1751296388802,0.96163354,106930.0,106920.0,1.54899959]
[1751296389606,0.96163354,106930.0,106920.0,1.47425043]
[1751296389806,0.96163354,106930.0,106920.0,1.54899959]
[1751296391906,0.60083354,106930.0,106920.0,0.27872707]
[1751296392111,0.96163354,106930.0,106920.0,1.11615959]
[1751296392808,0.60083354,106930.0,106920.0,1.11615959]
[1751296393017,0.55453354,106930.0,106920.0,1.20555959]
[1751296393711,1.22535738,106930.0,106920.0,0.09171397]
[1751296394014,1.63425738,106930.0,106920.0,0.07611296]
[1751296394412,1.31343354,106930.0,106920.0,0.07611296]
[1751296395012,1.31343354,106930.0,106920.0,0.06200322]
[1751296395213,1.81343354,106930.0,106920.0,0.06200322]
[1751296395411,2.13425738,106930.0,106920.0,0.66852322]
[1751296395712,1.81343354,106930.0,106920.0,0.66852322]
[1751296396416,2.13425738,106930.0,106920.0,0.66852322]
[1751296396613,1.81343354,106930.0,106920.0,0.66852322]
[1751296396916,1.81343354,106930.0,106920.0,0.68301124]
[1751296397714,1.81343354,106930.0,106920.0,0.66852322]
[1751296398314,1.81343354,106930.0,106920.0,0.67948735]
[1751296399411,1.81343354,106930.0,106920.0,0.66852322]
[1751296400321,1.81343354,106930.0,106920.0,0.67948746]
[1751296401919,1.81343354,106930.0,106920.0,0.66852322]
[1751296405918,1.81343354,106930.0,106920.0,0.68306218]
[1751296406223,1.81343354,106930.0,106920.0,0.07654218]
[1751296406720,2.13425738,106930.0,106920.0,0.07654218]
[1751296406921,1.81343354,106930.0,106920.0,0.07654218]
[1751296408721,0.1870131,106920.0,106910.0,0.07474916]
[1751296408928,1.71226078,106920.0,106910.0,0.10337548]
[1751296409226,1.71226078,106920.0,106910.0,0.08883382]
[1751296409424,1.71226078,106920.0,106910.0,0.01408466]
[1751296410029,2.21226078,106920.0,106910.0,0.01408466]
[1751296410824,2.81862078,106920.0,106910.0,0.01408466]
[1751296411029,3.10568478,106920.0,106910.0,0.08883382]
[1751296411329,3.10568478,106920.0,106910.0,0.01408466]
[1751296411822,2.81862078,106920.0,106910.0,0.01408466]
[1751296412026,2.81862078,106920.0,106900.0,0.17168457]
[1751296412221,0.86865434,106910.0,106900.0,0.25087709]
[1751296412417,1.01865434,106910.0,106900.0,0.25087709]
[1751296413128,1.18865434,106910.0,106900.0,0.25087709]
[1751296413429,1.68865434,106910.0,106900.0,0.25087709]
[1751296413928,1.68865434,106910.0,106900.0,0.25487709]
[1751296415026,1.68865434,106910.0,106900.0,0.17568457]
[1751296415228,1.68865434,106910.0,106900.0,0.86111709]
[1751296415629,1.68865434,106910.0,106900.0,0.25487709]
[1751296415826,1.68865434,106910.0,106900.0,0.25087709]
[1751296416030,1.68865434,106910.0,106900.0,0.25787709]
[1751296417030,1.68865434,106910.0,106900.0,0.18312793]
[1751296419920,1.68865434,106910.0,106900.0,0.19409399]
[1751296420431,1.68865434,106910.0,106900.0,0.18312793]
[1751296420832,1.68865434,106910.0,106900.0,0.19774949]
[1751296423234,1.73675434,106910.0,106900.0,0.19774949]
[1751296423430,0.187048,106900.0,106890.0,0.12104916]
[1751296423630,1.24867184,106900.0,106890.0,0.13171376]
[1751296423936,1.34247184,106900.0,106890.0,0.12074679]
[1751296424234,1.34247184,106900.0,106890.0,0.13171387]
[1751296424938,1.34247184,106900.0,106890.0,0.12974679]
[1751296425128,0.681648,106900.0,106890.0,0.12974679]
[1751296425333,1.26677184,106900.0,106890.0,0.12974679]
[1751296425737,1.2762272,106900.0,106890.0,0.12974679]
[1751296426037,1.2762272,106900.0,106890.0,0.14071387]
[1751296426236,0.91867184,106900.0,106890.0,0.14071387]
[1751296426428,0.91867184,106900.0,106890.0,0.12974679]
[1751296426634,1.21867184,106900.0,106890.0,0.17684679]
[1751296426936,1.31317184,106900.0,106890.0,0.32832679]
[1751296427337,1.31317184,106900.0,106890.0,0.33929355]
[1751296428039,1.31317184,106900.0,106890.0,0.35608492]
[1751296428437,1.31617184,106900.0,106890.0,0.33611816]
[1751296428635,1.31617184,106900.0,106890.0,0.18463816]
[1751296428943,1.31617184,106900.0,106890.0,0.39212758]
[1751296429130,1.32567371,106900.0,106890.0,0.40309434]
[1751296429437,1.32567371,106900.0,106890.0,0.34708512]
[1751296429641,1.33567371,106900.0,106890.0,0.34708512]
[1751296429845,0.97567371,106900.0,106890.0,0.34708512]
[1751296430044,1.28567371,106900.0,106890.0,0.4218342]
[1751296430234,1.28567371,106900.0,106890.0,0.34708504]
[1751296430737,1.28567371,106900.0,106890.0,0.29998504]
[1751296430934,1.28567371,106900.0,106890.0,0.28319367]
[1751296431537,1.07567371,106900.0,106890.0,0.28319367]
[1751296431841,1.30567371,106900.0,106890.0,0.28319367]
[1751296432341,1.30567371,106900.0,106890.0,0.35794283]
[1751296432554,1.30567371,106900.0,106890.0,0.34697595]
[1751296432736,1.30567371,106900.0,106890.0,0.27222679]
[1751296433037,0.97567371,106900.0,106890.0,0.27222679]
[1751296433244,1.29567371,106900.0,106890.0,0.28319388]
[1751296433436,1.04567371,106900.0,106890.0,0.35794304]
[1751296433636,1.31567371,106900.0,106890.0,0.35794304]
[1751296433836,1.31567371,106900.0,106890.0,0.28319388]
[1751296434633,1.04567371,106900.0,106890.0,0.28319388]
[1751296434839,1.28567371,106900.0,106890.0,0.13171388]
[1751296435039,1.28567371,106900.0,106890.0,0.13171395]
[1751296435343,1.28567371,106900.0,106890.0,0.28319395]
[1751296435639,1.28567371,106900.0,106890.0,0.35794311]
[1751296435944,1.28567371,106900.0,106890.0,0.34697595]
[1751296437144,1.03567371,106900.0,106890.0,0.36147567]
[1751296437345,1.28567371,106900.0,106890.0,0.37244279]
[1751296438047,1.28567371,106900.0,106890.0,0.36147567]
[1751296438548,1.28567371,106900.0,106890.0,0.40088743]
[1751296439143,1.28567371,106900.0,106890.0,0.24940743]
[1751296439351,1.28567371,106900.0,106890.0,0.40088743]
[1751296440349,1.28567371,106900.0,106890.0,0.23071172]
[1751296441147,1.78567371,106900.0,106890.0,0.23071172]
[1751296441549,1.78567371,106900.0,106890.0,0.17465827]
[1751296442350,1.78557371,106900.0,106890.0,0.17465827]
[1751296443051,1.78557371,106900.0,106890.0,0.24940743]
[1751296443652,1.78557371,106900.0,106890.0,0.26367771]
[1751296443842,1.78557371,106900.0,106890.0,0.18892855]
[1751296444047,1.78557371,106900.0,106890.0,0.14262855]
[1751296446250,1.78557371,106900.0,106890.0,0.21737771]
[1751296447944,1.78557371,106900.0,106890.0,0.21744854]
[1751296448150,1.78557371,106900.0,106890.0,0.14269938]
[1751296448658,1.78557371,106900.0,106890.0,0.21744858]
[1751296450054,1.78557371,106900.0,106890.0,0.14269942]
[1751296450458,1.46474987,106900.0,106890.0,0.14269942]
[1751296450658,1.78557371,106900.0,106890.0,0.14269942]
[1751296451350,1.78557371,106900.0,106890.0,0.19881442]
[1751296452460,1.78557371,106900.0,106890.0,0.14269942]
[1751296452658,1.78557371,106900.0,106890.0,0.12436179]
[1751296452854,1.78557371,106900.0,106890.0,0.19880858]
[1751296453656,1.06024987,106900.0,106890.0,0.12436179]
[1751296453950,0.689948,106900.0,106890.0,0.57839942]
[1751296454150,0.689948,106900.0,106890.0,0.4485783]
[1751296454357,1.01077184,106900.0,106890.0,0.4485783]
[1751296454563,1.01077184,106900.0,106890.0,0.42013366]
[1751296454954,0.689948,106900.0,106890.0,0.53245]
[1751296455163,1.37157184,106900.0,106890.0,0.3453845]
[1751296455566,1.38074093,106900.0,106890.0,0.3453845]
[1751296455859,1.37157184,106900.0,106890.0,0.3453845]
[1751296456060,1.050748,106900.0,106890.0,0.1953845]
[1751296456266,1.72157184,106900.0,106890.0,0.1953845]
[1751296456461,1.36077184,106900.0,106890.0,0.1953845]
[1751296456759,1.34077184,106900.0,106890.0,0.1953845]
[1751296456960,1.37157184,106900.0,106890.0,0.38245]
[1751296457167,1.37157184,106900.0,106890.0,0.1953845]
[1751296457168,0.87157184,106900.0,106890.0,0.1953845]
[1751296457464,0.87157184,106900.0,106890.0,0.38245]
[1751296457866,0.87157184,106900.0,106890.0,0.1953845]
[1751296458261,0.87157184,106900.0,106890.0,0.38244905]
[1751296458467,0.51077184,106900.0,106890.0,0.28468115]
[1751296459366,0.51077184,106900.0,106890.0,0.31443614]
[1751296459367,0.87157184,106900.0,106890.0,0.31443614]
[1751296459769,0.189948,106900.0,106890.0,1.21016053]
[1751296460068,0.13379994,106900.0,106890.0,1.19229037]
[1751296460466,0.13379994,106900.0,106890.0,1.23226653]
[1751296461365,0.45462378,106900.0,106890.0,0.88933669]
[1751296461560,0.45462378,106900.0,106890.0,0.79665238]
[1751296462466,0.45462378,106900.0,106890.0,0.7856858]
[1751296462679,0.45462378,106900.0,106890.0,0.79665207]
[1751296463075,0.45462378,106900.0,106890.0,0.78248179]
[1751296464280,0.45462378,106900.0,106890.0,0.8751661]
[1751296464985,0.45462378,106900.0,106890.0,0.78248187]
[1751296466084,0.45462378,106900.0,106890.0,0.88471714]
[1751296468188,0.13379994,106900.0,106890.0,0.88471714]
[1751296468382,0.45462378,106900.0,106890.0,0.88471714]
[1751296470490,0.13379994,106900.0,106890.0,0.88471714]
[1751296470975,0.13379994,106900.0,106890.0,0.87516618]
[1751296471786,0.13379994,106900.0,106890.0,0.88978791]
[1751296472694,0.45462378,106900.0,106890.0,0.88978791]
[1751296473285,0.45462378,106900.0,106890.0,0.89897498]
[1751296473487,0.13379994,106900.0,106890.0,0.89897498]
[1751296473986,0.13368994,106900.0,106890.0,0.89897498]
[1751296474283,0.13368994,106900.0,106890.0,0.88978791]
[1751296475086,0.51087184,106900.0,106890.0,0.70998267]
[1751296476095,0.51087184,106900.0,106890.0,0.69206469]
[1751296476481,0.51087184,106900.0,106890.0,0.69209242]
[1751296477090,0.51087184,106900.0,106890.0,0.69209251]
[1751296477585,0.51087184,106900.0,106890.0,0.61764562]
[1751296477785,0.96687184,106900.0,106890.0,0.40932711]
[1751296477981,1.00687184,106900.0,106890.0,0.97480711]
[1751296478690,1.00687184,106900.0,106890.0,0.14488032]
[1751296478691,0.96687184,106900.0,106890.0,0.14488032]
[1751296478983,1.29687184,106900.0,106890.0,0.14488032]
[1751296481485,1.29687184,106900.0,106890.0,0.07011399]
[1751296482488,1.29687184,106900.0,106890.0,0.12621408]
[1751296482679,1.29687184,106900.0,106890.0,0.07011399]
[1751296484092,1.79687184,106900.0,106890.0,0.07011399]
[1751296484391,1.79687184,106900.0,106890.0,0.14490369]
[1751296485390,1.79687184,106900.0,106890.0,0.14479369]
[1751296489385,1.79687184,106900.0,106890.0,0.01462182]
[1751296489582,1.79687184,106900.0,106890.0,0.10271443]
[1751296490190,1.79687184,106900.0,106890.0,0.13170573]
[1751296490489,1.79687184,106900.0,106890.0,0.11708247]
[1751296490986,1.79687184,106900.0,106890.0,0.13170598]
[1751296491389,2.40147184,106900.0,106890.0,0.13170598]
[1751296491586,2.080648,106900.0,106890.0,0.11733794]
[1751296491792,2.40147184,106900.0,106890.0,0.10271443]
[1751296492491,2.40147184,106900.0,106890.0,0.0747897]
[1751296492883,2.40147184,106900.0,106890.0,0.10392789]
[1751296493080,2.54176624,106900.0,106890.0,0.05608115]
[1751296493387,2.54176624,106900.0,106890.0,0.07053543]
[1751296493688,2.54176624,106900.0,106890.0,0.07070402]
[1751296494090,2.54176624,106900.0,106890.0,0.05608115]
[1751296494294,2.54176624,106900.0,106890.0,0.07053537]
[1751296495184,2.54172624,106900.0,106890.0,0.07053537]
[1751296495590,2.54172624,106900.0,106890.0,0.13075575]
[1751296495993,1.93716624,106900.0,106890.0,0.13075575]
[1751296496192,2.54168624,106900.0,106890.0,0.13075575]
[1751296496792,2.54156624,106900.0,106890.0,0.13075575]
[1751296497385,2.54156624,106900.0,106890.0,0.14172298]
[1751296499689,2.54156624,106900.0,106890.0,0.09612298]
[1751296501996,2.54156624,106900.0,106890.0,0.09612328]
[1751296502196,2.54156624,106900.0,106890.0,0.1038643]
[1751296502393,2.54156624,106900.0,106890.0,0.0290746]
[1751296503085,2.54156624,106900.0,106890.0,0.08516414]
[1751296503788,2.54156624,106900.0,106890.0,0.0851648]
[1751296503989,0.1870654,106890.0,106880.0,0.1201897]
[1751296504190,1.33368924,106890.0,106880.0,0.20560452]
[1751296504597,1.33368924,106890.0,106880.0,0.18810395]
[1751296504995,1.33368924,106890.0,106880.0,0.17713592]
[1751296505194,1.83368924,106890.0,106880.0,0.17713592]
[1751296505597,1.90759852,106890.0,106880.0,0.02789943]
[1751296506098,1.90759852,106890.0,106880.0,0.06529864]
[1751296506099,2.22842236,106890.0,106880.0,0.06529864]
[1751296506792,2.37874236,106890.0,106880.0,0.06729864]
[1751296507400,2.37874236,106890.0,106880.0,0.09533288]
[1751296507992,2.37874236,106890.0,106880.0,0.06260028]
[1751296508800,2.37874236,106890.0,106880.0,8e-08]
[1751296509097,0.1870829,106880.0,106870.0,0.00081575]
[1751296509294,2.25263058,106880.0,106870.0,0.01178505]
[1751296510208,2.75263058,106880.0,106870.0,0.01178505]
[1751296511299,2.75263058,106880.0,106870.0,0.0117851]
[1751296512405,2.75263058,106880.0,106870.0,0.00081575]
[1751296514104,2.75255058,106880.0,106870.0,0.00081575]
[1751296516006,2.75255058,106880.0,106870.0,0.03289087]
[1751296517911,2.14843058,106880.0,106870.0,0.03289087]
[1751296518109,2.75243058,106880.0,106870.0,0.03289087]
[1751296519807,2.75243058,106880.0,106870.0,0.03276218]
[1751296521313,2.75243058,106880.0,106870.0,0.03275903]
[1751296522215,2.75243058,106880.0,106870.0,0.03275779]
[1751296522508,2.75243058,106880.0,106870.0,0.01827005]
[1751296525918,2.75223058,106880.0,106870.0,0.01827005]
[1751296526110,1.77770674,106880.0,106870.0,0.01827005]
[1751296526418,1.52870674,106880.0,106870.0,0.10724546]
[1751296526617,1.52870674,106880.0,106870.0,0.21231462]
[1751296527114,1.52870674,106880.0,106870.0,0.38844576]
[1751296527318,1.36870674,106880.0,106870.0,0.38844576]
[1751296527516,1.36870674,106880.0,106870.0,0.20134546]
[1751296527718,0.86870674,106880.0,106870.0,0.20134546]
[1751296528418,0.86870674,106880.0,106870.0,0.42987124]
[1751296528611,0.50790674,106880.0,106870.0,0.42987124]
[1751296528806,0.86861674,106880.0,106870.0,0.42987124]
[1751296529018,0.50781674,106880.0,106870.0,0.42987124]
[1751296529221,0.86861674,106880.0,106870.0,0.25731571]
[1751296529817,0.86861674,106880.0,106870.0,0.21233099]
[1751296530513,0.86861674,106880.0,106870.0,0.26828499]
[1751296531021,0.89861674,106880.0,106870.0,0.21233099]
[1751296531219,0.89861674,106880.0,106870.0,0.26828499]
[1751296531719,0.89861674,106880.0,106870.0,0.25374012]
[1751296532119,0.89861674,106880.0,106870.0,0.24277084]
[1751296532520,0.89861674,106880.0,106870.0,0.18681684]
[1751296532712,0.89861674,106880.0,106870.0,0.20132231]
[1751296532909,0.2169929,106880.0,106870.0,0.76527445]
[1751296533213,0.1869929,106880.0,106870.0,1.32117225]
[1751296533721,0.1869929,106880.0,106870.0,1.00034841]
[1751296533919,0.50781674,106880.0,106870.0,1.00034841]
[1751296534122,0.50781674,106880.0,106870.0,1.01131691]
[1751296534321,0.50781674,106880.0,106870.0,1.00034841]
[1751296535223,0.50781674,106880.0,106870.0,1.60386841]
[1751296535625,0.50781674,106880.0,106870.0,1.41673241]
[1751296537415,0.50781674,106880.0,106870.0,1.06673241]
[1751296537619,0.50781674,106880.0,106870.0,1.39673241]
[1751296537824,0.86861674,106880.0,106870.0,1.05222694]
[1751296538124,0.86861674,106880.0,106870.0,1.39222694]
[1751296538423,0.86861674,106880.0,106870.0,1.39213694]
[1751296538617,0.50781674,106880.0,106870.0,1.39213694]
[1751296539413,0.50781674,106880.0,106870.0,1.05213694]
[1751296539618,0.50781674,106880.0,106870.0,1.37213694]
[1751296540025,0.50781674,106880.0,106870.0,1.38310591]
[1751296541124,0.1869929,106880.0,106870.0,1.30831621]
[1751296541522,0.50781674,106880.0,106870.0,1.30831621]
[1751296541720,0.50781674,106880.0,106870.0,0.98831621]
[1751296541921,0.50781674,106880.0,106870.0,1.35831621]
[1751296542226,0.50781674,106880.0,106870.0,0.98831621]
[1751296542428,0.50781674,106880.0,106870.0,1.29831621]
[1751296542627,0.50781674,106880.0,106870.0,0.98865912]
[1751296542926,0.50781674,106880.0,106870.0,1.07767299]
[1751296543921,0.50781674,106880.0,106870.0,1.00288329]
[1751296544327,0.50781674,106880.0,106870.0,1.07767299]
[1751296545823,0.50781674,106880.0,106870.0,1.00288329]
[1751296546223,0.50781674,106880.0,106870.0,1.05888193]
[1751296547324,0.50781674,106880.0,106870.0,1.00288329]
[1751296547628,0.86861674,106880.0,106870.0,0.39936329]
[1751296547924,1.21861674,106880.0,106870.0,1.05840637]
[1751296548131,1.31001674,106880.0,106870.0,1.05840637]